bitfinex/quotes_ETHUSD_20240710
["timestamp","ask_amount","ask_price","bid_price","bid_amount"]
[1720570436360,4.17366954,3071.0,3070.2,1.066]
[1720570436520,4.55814095,3071.0,3070.2,1.066]
[1720570436718,3.0,3070.9,3070.2,1.066]
[1720570436957,1.55814095,3071.0,3070.2,1.066]
[1720570438655,0.606754,3071.0,3070.2,1.066]
[1720570438869,3.0,3071.1,3070.6,1.066]
[1720570439165,12.5268,3071.9,3069.6,0.06513689]
[1720570439166,0.05675195,3071.7,3071.0,1.066]
[1720570439472,7.46,3071.8,3071.2,1.066]
[1720570439677,2.4916,3071.9,3071.2,1.066]
[1720570441172,2.4916,3071.9,3071.0,1.066]
[1720570441865,1.11683468,3071.8,3071.0,1.066]
[1720570442070,5.18283468,3071.8,3070.8,1.066]
[1720570442366,5.68344347,3071.8,3070.8,1.066]
[1720570442574,4.61744347,3071.8,3070.5,2.4916]
[1720570442929,2.4523,3071.7,3070.5,2.4916]
[1720570443129,0.55,3071.6,3070.5,2.4916]
[1720570443348,1.31197435,3071.6,3070.6,0.24916]
[1720570443546,4.31197435,3071.6,3070.6,0.24916]
[1720570444604,4.31197435,3071.6,3070.5,2.4916]
[1720570444605,4.31197435,3071.6,3070.1,2.3322]
[1720570444808,2.3108,3071.4,3070.6,0.162]
[1720570445008,5.3108,3071.4,3070.6,0.162]
[1720570445493,2.3108,3071.4,3070.6,0.162]
[1720570449210,0.56683302,3071.3,3070.1,2.3322]
[1720570449513,3.56683302,3071.3,3070.1,2.3322]
[1720570449675,3.0,3071.3,3070.2,0.23322]
[1720570449870,2.3108,3071.4,3070.2,0.23322]
[1720570450108,0.56690945,3071.3,3070.2,0.23322]
[1720570450303,3.56690945,3071.3,3070.2,0.23322]
[1720570450509,3.0,3071.3,3070.3,0.256542]
[1720570450707,2.3108,3071.4,3070.3,0.256542]
[1720570450906,0.56690891,3071.3,3070.3,0.256542]
[1720570451219,3.56690891,3071.3,3070.3,0.256542]
[1720570451526,3.0,3071.3,3070.3,0.256542]
[1720570451689,2.3108,3071.4,3070.3,0.256542]
[1720570452229,0.56688125,3071.3,3070.3,0.256542]
[1720570452393,3.56688125,3071.3,3070.3,0.256542]
[1720570452727,3.0,3071.3,3070.3,0.256542]
[1720570452900,2.3108,3071.4,3070.3,0.256542]
[1720570453088,0.56686411,3071.3,3070.3,0.256542]
[1720570453294,3.56686411,3071.3,3070.3,0.256542]
[1720570453612,3.0,3071.3,3070.3,0.256542]
[1720570453913,2.3108,3071.4,3070.3,0.256542]
[1720570454114,0.56685841,3071.3,3070.3,0.32166939]
[1720570454415,2.3108,3071.4,3070.3,0.32166939]
[1720570454617,9.8562,3071.8,3070.4,2.4109]
[1720570454817,0.56681833,3071.7,3070.6,2.4109]
[1720570455119,0.56680054,3071.7,3070.7,0.06511601]
[1720570455326,0.56680054,3071.7,3070.8,2.4109]
[1720570455481,7.46,3071.8,3070.9,0.31271628]
[1720570456121,3.0,3071.7,3070.9,0.31271628]
[1720570458414,3.0,3071.7,3070.9,0.2476016]
[1720570458617,3.0,3071.7,3071.0,0.0651148]
[1720570459144,3.0,3072.0,3071.0,0.0651148]
[1720570459419,0.56679624,3071.9,3071.0,0.33747644]
[1720570461821,3.0,3072.0,3071.0,0.33747644]
[1720570462126,0.5669369,3071.9,3071.0,0.33747644]
[1720570462312,0.56695573,3071.9,3071.0,0.33747644]
[1720570462727,0.56695573,3071.9,3071.1,1.064]
[1720570462933,3.0,3072.0,3071.1,1.064]
[1720570463226,0.56698972,3071.9,3071.1,1.064]
[1720570463805,0.56698972,3071.9,3071.0,0.27236164]
[1720570464000,2.2544,3071.8,3070.0,2.3039]
[1720570464208,2.2544,3071.8,3070.7,1.064]
[1720570464209,2.18098972,3071.7,3070.7,1.064]
[1720570464405,0.56712633,3071.6,3070.7,1.064]
[1720570464850,0.56712633,3071.6,3070.1,2.36902151]
[1720570465008,2.3178,3071.4,3070.5,1.064]
[1720570465206,5.3178,3071.4,3070.5,1.064]
[1720570465520,0.56721977,3071.3,3070.5,1.064]
[1720570465845,0.56721977,3071.3,3070.7,1.064]
[1720570468547,0.56712807,3071.3,3070.7,1.064]
[1720570468721,3.0,3071.4,3070.8,2.3293]
[1720570469039,0.05675152,3071.7,3070.9,0.23293]
[1720570469245,0.62386478,3071.7,3070.9,0.23293]
[1720570469449,3.62386478,3071.7,3070.9,0.23293]
[1720570469753,0.56711326,3071.6,3070.9,0.23293]
[1720570472305,0.56703895,3071.6,3070.9,0.23293]
[1720570472507,0.56703895,3071.6,3071.0,0.256223]
[1720570472729,0.56705096,3071.6,3071.0,0.256223]
[1720570473207,0.34081616,3071.5,3071.0,0.256223]
[1720570473875,0.90786712,3071.5,3071.0,0.256223]
[1720570474030,0.34081616,3071.5,3071.0,0.256223]
[1720570485073,3.90778829,3071.5,3071.0,0.256223]
[1720570485252,0.56697213,3071.4,3070.8,2.3293]
[1720570486147,3.56706776,3071.4,3070.8,2.3293]
[1720570486348,0.56706776,3071.3,3070.8,2.3293]
[1720570486657,0.34081616,3071.5,3070.8,2.3293]
[1720570486851,0.34081616,3071.5,3070.9,0.23293]
[1720570487054,0.34081616,3071.5,3070.8,2.3293]
[1720570490600,0.34081616,3071.5,3070.8,1.065]
[1720570492272,0.34081616,3071.5,3070.1,2.4164]
[1720570492461,0.34081616,3071.5,3070.7,1.065]
[1720570493810,2.4446,3071.4,3070.7,1.065]
[1720570494109,0.84580132,3071.3,3070.5,1.065]
[1720570494711,3.84580132,3071.3,3070.5,1.065]
[1720570494911,0.5672597,3071.2,3070.5,1.065]
[1720570495578,0.34084191,3071.1,3070.5,1.065]
[1720570495776,0.34084191,3071.1,3070.1,2.4164]
[1720570495777,0.75950623,3071.1,3070.3,1.065]
[1720570495962,2.3046,3071.0,3070.3,1.065]
[1720570496165,0.5672597,3070.9,3070.1,1.065]
[1720570496515,4.23057199,3070.9,3070.1,1.065]
[1720570496825,0.5674354,3070.8,3070.1,1.065]
[1720570497263,0.5674354,3070.8,3069.8,3.5185]
[1720570497476,2.2973,3070.7,3069.8,1.065]
[1720570497781,5.2973,3070.7,3069.8,1.065]
[1720570497982,2.93353,3070.7,3069.8,1.065]
[1720570499365,0.05680852,3070.6,3069.8,1.065]
[1720570499613,0.05680852,3070.6,3070.0,1.065]
[1720570500910,0.05680852,3070.6,3069.5,2.4159]
[1720570500911,0.05680852,3070.6,3069.7,1.065]
[1720570501082,0.23541085,3070.5,3069.7,1.065]
[1720570503316,0.23541085,3070.5,3069.5,1.065]
[1720570503317,2.4488,3070.4,3069.5,1.065]
[1720570503513,3.5138,3070.2,3069.1,1.065]
[1720570503702,3.40638,3070.1,3069.1,1.065]
[1720570503898,3.40638,3070.1,3068.9,1.065]
[1720570503899,4.0638,3070.0,3068.9,1.065]
[1720570504068,3.0,3069.9,3068.9,1.065]
[1720570504668,3.0,3069.9,3068.7,2.3041]
[1720570506295,3.0,3069.9,3068.8,0.06516176]
[1720570506498,2.4488,3070.0,3069.0,2.4184]
[1720570506701,2.4488,3070.0,3069.0,2.48355513]
[1720570507205,2.262,3070.3,3069.0,2.4184]
[1720570507373,2.81174109,3070.3,3069.1,0.24184]
[1720570507576,3.0,3070.2,3069.1,0.24184]
[1720570507772,2.262,3070.3,3069.1,0.24184]
[1720570507971,2.262,3070.3,3069.1,0.30699201]
[1720570508212,2.262,3070.3,3069.2,0.2725392]
[1720570508574,2.262,3070.3,3069.4,2.453]
[1720570508790,9.84820852,3070.6,3069.5,0.06515121]
[1720570508991,9.84820852,3070.6,3069.6,0.25181512]
[1720570509299,9.84820852,3070.6,3069.7,0.06514219]
[1720570509838,9.7914,3070.6,3069.7,0.06514219]
[1720570510936,3.34091592,3070.5,3069.6,0.31695737]
[1720570512593,3.34091592,3070.5,3069.7,2.3649]
[1720570512794,0.34091592,3070.5,3069.8,0.26167151]
[1720570517665,0.34091592,3070.5,3069.9,2.4557]
[1720570517960,0.34091592,3070.5,3069.8,0.32680766]
[1720570517961,0.34091592,3070.5,3070.1,2.4557]
[1720570518154,0.34091592,3070.5,3070.2,0.06513055]
[1720570518357,0.34091592,3070.5,3070.3,0.25208306]
[1720570518559,0.34091592,3070.5,3070.3,0.31721354]
[1720570518767,7.46,3071.0,3070.4,2.52083048]
[1720570519959,7.46,3071.0,3070.4,2.4557]
[1720570521136,7.46,3071.0,3070.0,5.4058]
[1720570521332,7.46,3071.0,3070.0,2.4058]
[1720570521536,7.46,3071.0,3070.1,0.54709266]
[1720570522258,3.34086404,3070.9,3070.1,0.54709266]
[1720570522461,3.34086404,3070.9,3070.0,2.4058]
[1720570522761,3.34086404,3070.9,3069.8,0.26167151]
[1720570522971,3.34086404,3070.9,3069.5,2.4261]
[1720570523836,2.3581,3070.8,3069.5,2.4261]
[1720570524065,0.55,3070.7,3069.0,12.4147]
[1720570524352,0.55,3070.7,3068.6,2.558]
[1720570524551,2.64891,3070.6,3068.6,4.9447]
[1720570524735,0.55,3070.5,3068.6,4.9447]
[1720570524941,3.55,3070.5,3068.6,4.9447]
[1720570525666,2.2502,3070.4,3068.6,4.9447]
[1720570525851,1.47392,3070.3,3068.7,0.49447]
[1720570526026,4.47392,3070.3,3068.7,0.49447]
[1720570526228,0.3268,3070.1,3068.2,2.62315968]
[1720570526532,0.55,3070.0,3068.2,2.558]
[1720570534151,2.3173,3069.9,3068.2,2.558]
[1720570534356,0.55,3069.8,3068.3,0.06516933]
[1720570534705,2.3173,3069.7,3067.8,0.06516933]
[1720570534857,2.8673,3069.6,3067.6,2.62317425]
[1720570535055,2.3173,3069.4,3067.7,0.50752742]
[1720570535495,2.3173,3069.2,3067.7,0.50752742]
[1720570535808,0.55,3069.1,3067.7,0.50752742]
[1720570535990,0.58673,3069.0,3067.8,0.30655274]
[1720570536501,0.55,3068.9,3067.8,0.30655274]
[1720570537473,3.0,3069.1,3067.8,0.37173482]
[1720570537695,2.3173,3069.2,3067.8,0.37173482]
[1720570537855,2.3173,3069.2,3067.9,0.41390122]
[1720570538595,2.3173,3069.2,3067.8,0.37173482]
[1720570538755,2.3173,3069.2,3067.8,0.30655274]
[1720570540803,0.05682641,3069.1,3067.8,0.30655274]
[1720570543003,2.3173,3069.2,3067.9,0.06517659]
[1720570543833,2.3173,3069.2,3067.8,0.30655274]
[1720570544035,0.53173,3069.1,3067.8,0.30655274]
[1720570544193,3.53173,3069.1,3067.8,0.30655274]
[1720570544879,2.3645,3069.0,3067.7,0.50752742]
[1720570545106,2.9145,3068.9,3067.2,2.558]
[1720570545311,2.9145,3068.9,3067.0,2.2584]
[1720570545533,2.3645,3068.7,3067.0,2.2584]
[1720570545751,2.3645,3068.5,3067.0,2.2584]
[1720570545954,5.3645,3068.5,3067.1,0.23235891]
[1720570546131,2.3645,3068.5,3067.1,0.23235891]
[1720570546447,0.55,3068.4,3067.1,0.23235891]
[1720570546754,3.55,3068.4,3066.8,2.558]
[1720570547114,3.55,3068.4,3066.9,0.06519377]
[1720570549116,2.266,3068.9,3067.4,3.26003]
[1720570549341,2.266,3068.9,3067.5,0.06517656]
[1720570549618,2.266,3068.9,3067.7,2.558]
[1720570549934,2.266,3068.9,3067.8,0.06517658]
[1720570550147,2.266,3068.9,3067.7,2.558]
[1720570550334,2.266,3068.9,3067.6,0.33252066]
[1720570550548,0.55,3068.8,3067.3,2.558]
[1720570550748,2.4697,3068.7,3067.3,2.558]
[1720570550915,2.4697,3068.7,3067.1,0.06518511]
[1720570551119,2.4697,3068.6,3067.2,0.06518567]
[1720570551441,0.55,3068.5,3067.2,0.06518567]
[1720570551647,3.55,3068.5,3067.2,0.06518567]
[1720570554221,3.55,3068.5,3066.9,5.81861]
[1720570554447,2.264,3068.4,3066.9,5.81861]
[1720570554647,5.905597,3068.4,3067.0,0.97311758]
[1720570554861,5.264,3068.4,3067.0,0.97311758]
[1720570556387,2.2706,3068.3,3067.0,0.97311758]
[1720570556655,5.2706,3068.3,3066.9,2.558]
[1720570556860,2.2706,3068.3,3066.9,2.558]
[1720570557221,2.2706,3068.3,3067.0,0.06519165]
[1720570557421,2.2706,3068.3,3066.9,5.81856]
[1720570557654,2.2706,3068.3,3067.0,0.907922]
[1720570558245,2.2706,3068.3,3066.6,2.4287]
[1720570558450,2.4846,3068.1,3066.5,8.81904]
[1720570558625,2.4846,3067.9,3066.6,0.881904]
[1720570558821,5.4846,3067.9,3066.6,0.881904]
[1720570559028,2.2658,3067.8,3066.5,2.558]
[1720570560965,0.55,3067.1,3065.5,2.62322348]
[1720570561125,2.3908,3066.9,3065.6,0.58854235]
[1720570561326,2.3908,3066.9,3065.7,0.06522264]
[1720570561327,5.3908,3066.9,3065.7,0.06522264]
[1720570562233,2.3543,3066.7,3064.6,2.365]
[1720570562433,2.3543,3066.5,3064.8,3.26283]
[1720570562756,2.3543,3066.5,3064.9,5.88597438]
[1720570562955,2.3543,3066.5,3065.0,3.26261]
[1720570563159,2.3543,3066.5,3065.5,3.26209]
[1720570563334,2.3543,3067.5,3065.7,5.81983]
[1720570563535,2.3543,3067.2,3065.7,2.558]
[1720570563733,0.24111115,3067.1,3065.8,0.62114269]
[1720570564156,3.24111115,3067.1,3065.8,0.62114269]
[1720570564370,3.24111115,3067.1,3065.7,2.558]
[1720570564578,2.3543,3067.0,3065.6,0.326209]
[1720570564883,2.3543,3067.0,3065.3,2.558]
[1720570564884,2.3543,3066.9,3065.3,2.558]
[1720570565045,2.9043,3066.9,3065.0,0.0652308]
[1720570565250,2.3543,3066.7,3065.1,0.58859508]
[1720570565660,2.2858,3066.6,3065.1,0.58859508]
[1720570565879,2.2858,3066.4,3064.7,3.49942]
[1720570566052,0.55,3066.3,3064.7,0.2365]
[1720570566258,2.2858,3066.2,3064.3,0.06524361]
[1720570566488,0.55,3066.1,3064.2,2.6705341]
[1720570566641,2.2858,3066.0,3064.2,2.6705341]
[1720570566842,2.2858,3065.8,3064.3,0.26705341]
[1720570567155,0.55,3065.7,3064.3,0.26705341]
[1720570567387,3.55,3065.7,3064.3,0.26705341]
[1720570567695,3.55,3065.7,3064.2,0.1125341]
[1720570567880,3.0,3065.7,3064.2,0.1125341]
[1720570568097,5.2858,3065.8,3064.4,2.558]
[1720570568383,5.2858,3065.8,3064.5,0.58213]
[1720570568585,2.2858,3065.8,3064.5,0.58213]
[1720570568996,2.2858,3065.8,3064.5,3.8453]
[1720570569217,2.2858,3065.8,3064.6,3.32824052]
[1720570569380,2.2858,3065.8,3064.6,2.88824052]
[1720570569563,2.2858,3065.8,3064.7,0.67335405]
[1720570569887,0.0652406,3065.7,3064.2,0.1125341]
[1720570570098,2.3168,3065.6,3064.2,0.1125341]
[1720570570770,2.3168,3065.4,3064.2,0.1125341]
[1720570571091,0.55,3065.3,3064.2,0.1125341]
[1720570571292,0.28668,3065.2,3064.2,0.1125341]
[1720570572066,3.0,3065.3,3064.2,0.1125341]
[1720570572764,2.3168,3065.4,3064.2,0.1125341]
[1720570574081,2.3168,3065.4,3064.3,0.0652546]
[1720570577027,2.3168,3065.4,3064.4,3.26326]
[1720570577236,2.3168,3065.4,3064.5,0.06524593]
[1720570577438,2.3168,3065.4,3064.6,2.89085059]
[1720570577738,2.3168,3065.4,3064.7,0.06524593]
[1720570578842,0.0652406,3065.3,3064.2,0.1125341]
[1720570579074,2.4584,3065.1,3064.2,0.1125341]
[1720570579337,0.0652406,3065.0,3064.2,0.1125341]
[1720570579499,3.0,3065.0,3064.2,0.1125341]
[1720570579691,2.4584,3065.1,3064.2,0.1125341]
[1720570583603,0.0652406,3065.0,3064.2,0.1125341]
[1720570583812,3.62412872,3065.0,3064.2,0.1125341]
[1720570584457,3.55888812,3065.0,3064.2,0.1125341]
[1720570585438,3.0,3065.0,3064.2,0.1125341]
[1720570585740,12.2,3066.3,3064.2,5.6551441]
[1720570585741,3.0,3065.6,3064.2,5.6551441]
[1720570586079,2.415,3065.5,3064.2,0.1125341]
[1720570586218,0.5415,3065.4,3064.2,0.1125341]
[1720570586424,3.0,3065.4,3064.2,0.1125341]
[1720570586630,2.415,3065.5,3064.2,0.1125341]
[1720570586826,2.415,3065.5,3064.3,0.06525359]
[1720570587665,2.415,3065.5,3064.2,0.1125341]
[1720570587967,2.6565,3065.5,3064.2,0.1125341]
[1720570588170,3.0,3065.4,3064.2,0.1125341]
[1720570589672,0.0652406,3065.3,3064.2,0.1125341]
[1720570589879,0.55,3065.2,3064.2,0.1125341]
[1720570590050,0.55,3065.3,3064.2,0.1125341]
[1720570590234,0.36152406,3065.2,3064.2,0.1125341]
[1720570590433,0.55,3065.1,3064.2,0.1125341]
[1720570590831,0.36152406,3065.2,3064.2,0.1125341]
[1720570592779,0.42676466,3065.2,3064.2,0.1125341]
[1720570593089,0.55,3065.1,3064.2,0.1125341]
[1720570593488,2.3634406,3065.0,3064.2,0.1125341]
[1720570593781,0.29134406,3064.9,3064.2,0.1125341]
[1720570593945,0.6152406,3064.8,3064.2,0.1125341]
[1720570594159,0.0652406,3064.7,3064.2,0.1125341]
[1720570594364,2.2982,3064.5,3064.2,0.1125341]
[1720570594559,0.0652406,3064.4,3064.2,0.1125341]
[1720570594765,0.53634406,3064.3,3064.2,0.1125341]
[1720570594960,3.0652406,3064.4,3064.2,0.1125341]
[1720570595160,0.0652406,3064.4,3064.2,0.1125341]
[1720570595358,2.2982,3064.5,3064.2,0.1125341]
[1720570596179,2.3634406,3064.5,3064.2,0.1125341]
[1720570597491,0.55,3064.4,3064.2,0.1125341]
[1720570597692,0.65658466,3064.3,3064.2,0.1125341]
[1720570597991,1.20658466,3064.3,3064.2,0.1125341]
[1720570598502,1.14134406,3064.3,3064.2,0.1125341]
[1720570598864,0.59134406,3064.3,3064.2,0.1125341]
[1720570599178,3.0,3064.4,3064.2,0.1125341]
[1720570599392,2.76038466,3064.9,3064.2,0.1125341]
[1720570599706,3.0,3064.8,3064.2,0.1125341]
[1720570601205,0.29134406,3064.9,3064.2,2.3762341]
[1720570601371,7.46,3065.4,3064.2,2.3762341]
[1720570602719,3.0,3065.3,3064.2,2.3762341]
[1720570603592,3.0,3065.3,3064.2,0.1125341]
[1720570603784,0.55,3065.1,3064.2,0.1125341]
[1720570604213,2.2565,3064.9,3064.2,0.1125341]
[1720570604419,0.84741466,3064.8,3064.2,0.1125341]
[1720570604903,3.84741466,3064.8,3064.2,0.1125341]
[1720570605927,3.78217406,3064.8,3064.2,0.1125341]
[1720570606114,3.83903528,3064.8,3064.2,0.1125341]
[1720570607702,3.90427588,3064.8,3064.2,0.1125341]
[1720570608043,0.61607759,3064.7,3064.2,0.1125341]
[1720570608213,0.55,3064.6,3064.2,0.1125341]
[1720570612729,0.0652406,3064.5,3064.2,0.1125341]
[1720570613556,0.55,3064.4,3064.2,0.1125341]
[1720570613758,0.6152406,3064.4,3064.2,0.1125341]
[1720570616157,0.55,3064.4,3064.2,0.1125341]
[1720570616362,0.55,3064.5,3064.2,0.1125341]
[1720570617124,0.0652406,3064.4,3064.2,0.1125341]
[1720570617342,0.55,3064.3,3064.2,0.1125341]
[1720570617741,0.55,3064.3,3062.7,2.2723]
[1720570617742,6.4701406,3064.3,3062.7,2.2723]
[1720570617941,3.424,3064.0,3062.7,2.2723]
[1720570618164,0.0652406,3063.9,3062.7,2.2723]
[1720570618469,2.9659,3063.8,3061.8,2.2723]
[1720570618626,3.0652406,3063.7,3061.8,2.2723]
[1720570618827,3.439,3063.5,3061.9,0.22723]
[1720570619036,2.4159,3063.3,3061.9,0.22723]
[1720570619228,2.4159,3063.3,3061.1,0.1125341]
[1720570619229,2.569,3063.0,3061.3,2.2723]
[1720570619532,2.6342406,3063.0,3061.3,2.2723]
[1720570619745,3.55,3062.9,3061.3,2.2723]
[1720570619974,2.4811406,3062.8,3061.3,2.2723]
[1720570620147,1.15311406,3062.7,3061.4,0.22723]
[1720570620350,0.60311406,3062.7,3061.4,0.22723]
[1720570620548,3.60311406,3062.7,3061.4,0.22723]
[1720570621069,0.01642948,3061.5,3061.4,0.22723]
[1720570623333,0.01642948,3061.5,3061.3,2.2723]
[1720570623649,0.01642948,3061.5,3061.1,0.1125341]
[1720570623851,0.01642948,3061.5,3061.2,0.06532422]
[1720570624359,2.7823,3063.0,3061.2,0.06532422]
[1720570624360,0.01642948,3061.3,3061.2,0.06532422]
[1720570624591,0.01642948,3061.3,3061.1,0.17784754]
[1720570624891,0.01642948,3061.3,3061.2,2.4678]
[1720570627245,0.86001406,3063.6,3061.2,2.4678]
[1720570627246,0.0568584,3062.8,3061.3,2.44600206]
[1720570627555,2.4076,3063.5,3061.6,2.3807]
[1720570627883,2.4644466,3063.5,3061.7,0.06529693]
[1720570628099,2.4644466,3063.5,3061.8,0.06529494]
[1720570628248,0.0568466,3063.5,3061.9,2.4718]
[1720570628447,0.0568466,3063.5,3062.0,0.86899729]
[1720570629183,2.2522,3064.0,3062.0,0.86899729]
[1720570630403,2.2522,3064.0,3062.3,3.26542]
[1720570630607,2.2522,3064.0,3062.5,3.26526]
[1720570630784,2.2522,3064.0,3062.6,0.39181378]
[1720570631691,2.2522,3064.0,3062.6,0.06528778]
[1720570633265,0.341355,3063.9,3062.6,0.06528778]
[1720570633774,3.341355,3063.9,3062.6,0.06528778]
[1720570634909,2.3918406,3063.8,3062.0,0.25370949]
[1720570635109,2.3918406,3063.8,3061.4,1.2809803]
[1720570635110,7.1918,3063.7,3061.4,0.59960021]
[1720570635253,2.3266,3063.4,3061.4,0.59960021]
[1720570635473,2.3266,3063.2,3061.4,0.59960021]
[1720570635762,0.6152406,3063.1,3061.8,0.747]
[1720570635970,3.6152406,3063.1,3061.4,0.59960021]
[1720570636174,3.6152406,3063.1,3061.1,0.1125341]
[1720570636175,0.3268,3062.9,3061.1,0.1125341]
[1720570636483,2.9064406,3062.8,3061.1,0.1125341]
[1720570636679,3.0,3062.7,3061.1,0.1125341]
[1720570636880,1.20588466,3062.6,3061.1,0.36898751]
[1720570639200,1.20588466,3062.6,3061.1,0.1125341]
[1720570641609,2.3079,3062.5,3061.1,0.1125341]
[1720570641771,0.6152406,3062.4,3061.1,0.1125341]
[1720570642186,3.6152406,3062.4,3061.1,0.1125341]
[1720570643919,2.4716,3062.3,3061.1,0.1125341]
[1720570644106,1.22392466,3062.2,3061.1,0.1125341]
[1720570644630,2.4716,3062.1,3061.1,0.1125341]
[1720570644925,0.0652406,3062.0,3061.1,0.1125341]
[1720570645134,3.6152406,3062.0,3061.1,0.1125341]
[1720570648435,3.55,3062.0,3061.1,0.1125341]
[1720570648597,0.34135585,3061.9,3061.1,0.1125341]
[1720570651288,0.05688612,3061.8,3061.1,0.1125341]
[1720570651490,0.34135585,3061.9,3061.1,0.1125341]
[1720570660301,0.0652406,3061.8,3061.1,0.1125341]
[1720570660500,2.2739,3061.7,3061.1,0.1125341]
[1720570661435,3.0,3061.8,3061.1,0.1125341]
[1720570661597,0.34135585,3061.9,3061.1,0.1125341]
[1720570666028,0.34135585,3061.9,3061.1,0.45701996]
[1720570666225,0.34135585,3061.9,3061.1,0.1125341]
[1720570666835,3.0,3062.0,3061.1,0.1125341]
[1720570667035,2.3667,3062.1,3061.1,0.1125341]
[1720570668209,0.55,3062.0,3061.1,0.1125341]
[1720570668414,3.55,3062.0,3061.1,0.1125341]
[1720570668622,0.59167,3061.9,3061.1,0.1125341]
[1720570670242,3.0,3062.0,3061.1,0.1125341]
[1720570670447,2.3667,3062.1,3061.1,0.17785696]
[1720570671309,5.4115,3062.5,3061.2,2.3046]
[1720570671520,5.4115,3062.5,3061.3,3.33183096]
[1720570671719,2.4767406,3062.5,3061.2,2.3046]
[1720570671919,3.0,3062.4,3061.3,0.24171341]
[1720570672148,2.4115,3062.5,3061.1,0.1125341]
[1720570673054,0.55,3062.4,3061.1,0.1125341]
[1720570673447,3.55,3062.4,3061.1,0.1125341]
[1720570674007,3.55,3062.4,3061.1,0.17785644]
[1720570674203,3.55,3062.4,3061.1,0.52233708]
[1720570675158,3.55,3062.4,3061.1,0.1125341]
[1720570676145,3.0,3062.4,3061.1,0.1125341]
[1720570676479,0.05688455,3062.5,3061.3,5.74068]
[1720570676679,3.56888962,3062.8,3061.4,0.06531592]
[1720570676917,3.24438,3062.8,3061.5,0.58059959]
[1720570677177,3.24438,3062.8,3061.6,0.06531333]
[1720570677479,0.56895309,3062.7,3061.6,0.06531333]
[1720570677680,0.56895309,3062.7,3061.7,0.39122729]
[1720570677903,0.5689611,3062.7,3061.8,0.06531336]
[1720570678110,0.5689611,3062.7,3061.6,0.06531336]
[1720570678648,0.56890944,3062.7,3061.6,0.06531336]
[1720570678967,0.56890944,3062.7,3061.7,0.3912273]
[1720570679175,0.56890944,3062.7,3061.8,0.06531164]
[1720570680979,0.56890944,3062.7,3061.7,0.3912273]
[1720570681199,0.568929,3062.7,3061.7,0.3912273]
[1720570681400,0.5689274,3062.7,3061.8,0.06531171]
[1720570681603,3.0,3062.8,3061.8,0.06531171]
[1720570681770,0.56893618,3062.7,3061.7,0.3912273]
[1720570682081,3.56893618,3062.8,3061.7,0.3912273]
[1720570682284,0.63417678,3062.7,3061.7,0.3912273]
[1720570682489,0.56894149,3062.7,3061.3,2.4741]
[1720570682788,0.56894149,3062.7,3061.4,0.06531731]
[1720570683509,0.56894149,3062.7,3061.8,5.61023]
[1720570683916,0.39818046,3063.1,3061.8,5.61023]
[1720570683917,0.96712195,3063.1,3061.8,2.3442]
[1720570684469,0.96709025,3063.1,3061.8,2.3442]
[1720570685069,0.96709025,3063.1,3061.9,0.06530518]
[1720570685292,0.96706612,3063.1,3061.9,0.06530518]
[1720570685599,0.96706612,3063.1,3061.8,2.3442]
[1720570686022,0.6152406,3063.0,3061.8,2.3442]
[1720570686609,0.6152406,3063.0,3061.3,2.41001744]
[1720570686610,2.3996,3062.9,3061.3,2.41001744]
[1720570686813,2.3996,3062.9,3061.5,0.06531744]
[1720570686814,1.11888566,3062.8,3061.5,0.06531744]
[1720570686971,1.11888566,3062.8,3061.3,2.3447]
[1720570687170,4.11888566,3062.8,3061.3,2.3447]
[1720570687404,0.56888566,3062.7,3061.5,3.26634]
[1720570687592,0.56888566,3062.7,3061.6,2.53290603]
[1720570688004,0.56886028,3062.7,3061.6,2.53290603]
[1720570688398,3.0,3062.8,3061.6,2.53290603]
[1720570688591,0.56884428,3062.7,3061.7,3.26613]
[1720570688814,3.56884428,3062.8,3061.8,0.06530606]
[1720570689022,0.56884428,3062.7,3061.6,2.4676]
[1720570689294,3.56884428,3062.8,3061.6,2.4676]
[1720570689602,2.3996,3062.9,3061.6,2.4676]
[1720570689603,3.56884428,3062.7,3061.6,2.4676]
[1720570689803,0.56884428,3062.6,3061.6,2.4676]
[1720570690132,3.56884428,3062.8,3061.6,2.4676]
[1720570690293,0.56884428,3062.7,3061.6,2.4676]
[1720570691133,0.0652406,3062.6,3061.2,2.371]
[1720570691315,2.9409,3062.5,3061.2,2.371]
[1720570691618,3.36585466,3062.4,3061.2,2.371]
[1720570691837,0.56862861,3062.3,3061.2,2.371]
[1720570692029,0.0652406,3062.2,3061.2,2.371]
[1720570693231,0.56862861,3062.3,3061.1,2.6835341]
[1720570693521,0.55,3062.2,3061.1,2.6835341]
[1720570693702,0.99192427,3062.2,3061.1,3.18961751]
[1720570696372,0.55,3062.2,3061.1,3.18961751]
[1720570696659,0.55,3062.2,3061.1,0.61861751]
[1720570696863,0.55,3062.2,3061.1,0.1125341]
[1720570697252,0.60687459,3062.2,3061.1,0.1125341]
[1720570697423,0.60687459,3062.2,3061.2,0.06532748]
[1720570697841,0.05687459,3062.2,3061.2,0.06532722]
[1720570698077,0.56849536,3062.3,3061.2,0.06532722]
[1720570698258,0.56849536,3062.3,3061.1,0.1125341]
[1720570698576,0.56849536,3062.3,3061.1,0.68821451]
[1720570700164,0.56849536,3062.3,3061.1,0.1125341]
[1720570700368,0.55,3062.2,3061.1,0.1125341]
[1720570707146,2.4319,3062.1,3061.1,0.1125341]
[1720570707346,0.56879138,3062.0,3061.1,0.1125341]
[1720570707553,3.56879138,3062.0,3061.1,0.1125341]
[1720570707769,1.16886052,3061.9,3061.1,0.1125341]
[1720570708280,0.56882722,3061.8,3061.1,0.1125341]
[1720570708483,1.16889636,3061.9,3061.1,0.1125341]
[1720570709542,2.432,3061.8,3061.1,0.1125341]
[1720570709736,0.92891686,3061.7,3061.1,0.1125341]
[1720570710253,3.92881577,3061.7,3061.1,0.1125341]
[1720570710458,0.56872613,3061.6,3061.1,0.1125341]
[1720570711355,3.36008964,3061.7,3061.1,0.1125341]